bitfinex/quotes_ETHUSD_20251028
["timestamp","ask_amount","ask_price","bid_price","bid_amount"]
[1761690265594,0.1009,3988.7,3988.3,0.1268]
[1761690265762,0.1009,3988.7,3988.3,2.50930935]
[1761690266499,0.1009,3988.7,3988.4,2.50726867]
[1761690267595,0.1009,3988.7,3988.4,2.50726213]
[1761690267759,0.1009,3988.7,3988.5,2.50719678]
[1761690267961,0.1009,3988.7,3988.6,2.50714536]
[1761690268285,0.001,3988.7,3988.6,2.50714536]
[1761690270793,0.001,3988.7,3988.6,5.41377035]
[1761690271400,0.001,3988.7,3988.6,10.84304539]
[1761690271601,0.001,3988.7,3988.6,14.67229828]
[1761690271967,0.001,3988.7,3988.6,14.77265315]
[1761690276004,0.001,3988.7,3988.6,10.93565317]
[1761690277076,0.001,3989.1,3989.0,4.46759795]
[1761690277406,0.001,3989.1,3989.0,12.57563279]
[1761690277569,0.001,3989.1,3989.0,13.00743279]
[1761690278529,0.001,3989.5,3989.4,9.89662164]
[1761690278710,0.001,3989.5,3989.4,12.36062164]
[1761690279031,0.001,3989.5,3989.4,12.79242164]
[1761690279183,0.001,3989.5,3989.4,14.32233613]
[1761690280193,0.001,3989.5,3989.4,12.09033613]
[1761690280394,0.001,3989.5,3989.4,14.32133613]
[1761690280901,0.001,3989.5,3989.4,14.44613613]
[1761690281371,0.001,3989.5,3989.4,9.01686109]
[1761690282105,0.001,3989.5,3989.4,9.14166109]
[1761690284200,0.001,3989.5,3989.4,9.17096109]
[1761690284527,0.001,3989.5,3989.4,9.04616109]
[1761690286331,0.001,3989.5,3989.4,8.35306109]
[1761690286503,0.001,3989.5,3989.4,8.81416109]
[1761690287303,0.001,3989.5,3989.4,8.93906109]
[1761690291246,0.001,3989.5,3989.4,8.81426109]
[1761690293508,0.2239,3990.9,3989.6,1.960704]
[1761690293835,0.2239,3990.9,3990.8,2.50576325]
[1761690294020,0.2239,3990.9,3990.8,4.73576325]
[1761690297822,0.1241,3990.9,3990.8,4.73576325]
[1761690298010,0.1218,3991.1,3991.0,2.50563768]
[1761690298543,0.0998,3991.2,3991.0,2.50563768]
[1761690298544,0.1265,3992.0,3991.6,2.50522441]
[1761690298710,0.2205,3991.9,3991.3,2.50544262]
[1761690298912,0.2205,3991.9,3991.6,2.50526102]
[1761690299618,0.2205,3991.9,3991.5,2.50530754]
[1761690300219,0.2205,3991.9,3991.6,2.50522153]
[1761690300729,0.2205,3991.9,3991.2,6.29066533]
[1761690300931,2.50518603,3991.8,3991.0,2.23]
[1761690301144,0.1248,3991.6,3991.1,2.50555811]
[1761690301447,0.1248,3991.6,3990.9,0.1248]
[1761690301654,0.2205,3991.5,3991.0,2.50563663]
[1761690301851,0.2205,3991.5,3990.9,2.63049247]
[1761690302148,0.1248,3991.3,3990.7,2.50581605]
[1761690302451,0.1248,3991.0,3990.8,2.50575272]
[1761690302752,0.1248,3991.0,3990.6,2.23]
[1761690302753,0.1248,3991.0,3990.9,2.50570046]
[1761690304551,0.468,3991.0,3990.9,2.50570046]
[1761690305055,0.468,3991.0,3990.8,2.50575497]
[1761690305353,0.2211,3990.9,3990.8,2.50575497]
[1761690305716,0.2211,3990.9,3990.3,0.02174964]
[1761690305926,2.7268097,3990.9,3990.3,0.02174964]
[1761690306123,0.2211,3990.9,3990.3,0.02174964]
[1761690306327,0.2211,3990.8,3990.3,0.02174964]
[1761690306526,0.2211,3990.8,3990.3,2.5277845]
[1761690306741,0.2211,3990.8,3990.4,2.50600475]
[1761690307460,0.1233,3990.9,3990.8,2.50576325]
[1761690310549,0.2223,3990.9,3990.8,2.50576325]
[1761690313067,0.1233,3990.9,3990.8,2.50576325]
[1761690316894,0.2223,3990.9,3990.8,2.50576325]
[1761690318191,0.2223,3990.9,3990.5,0.1248]
[1761690318493,0.2223,3990.9,3990.8,2.50576325]
[1761690318494,0.1233,3990.9,3990.8,2.50576325]
[1761690318994,0.2223,3990.9,3990.8,2.50576325]
[1761690320288,0.3471,3990.9,3990.8,2.50576325]
[1761690324798,0.2481,3990.9,3990.8,2.50576325]
[1761690326097,0.001,3991.3,3991.2,2.50551212]
[1761690326891,0.001,3991.3,3991.2,4.06071212]
[1761690327167,0.001,3991.3,3991.2,4.50131212]
[1761690329082,0.0991,3991.8,3991.7,2.50519828]
[1761690331016,0.1981,3991.8,3991.6,2.50522042]
[1761690331307,0.1981,3991.8,3991.6,2.50524345]
[1761690331606,0.099,3991.7,3991.6,2.50524345]
[1761690333001,0.099,3991.7,3991.5,2.50527279]
[1761690333512,0.099,3991.7,3991.0,2.50563768]
[1761690333814,0.0991,3991.8,3990.9,2.228]
[1761690334024,0.0991,3991.8,3991.5,2.50528393]
[1761690334209,0.1981,3991.8,3991.5,2.50528393]
[1761690334516,0.1981,3991.8,3991.4,2.50538419]
[1761690334718,0.099,3991.7,3991.5,2.50530556]
[1761690335817,0.0991,3991.8,3991.4,2.50536187]
[1761690336204,0.1981,3991.8,3991.6,2.50522151]
[1761690336720,0.099,3991.7,3991.6,2.50522151]
[1761690337097,0.099,3991.7,3990.9,5.17424891]
[1761690337098,0.0991,3991.8,3991.7,2.50519828]
[1761690337628,0.1981,3991.8,3991.7,2.50519828]
[1761690340710,0.0991,3991.8,3991.7,2.50519828]
[1761690341720,0.1001,3991.8,3991.7,2.50519828]
[1761690342819,0.001,3991.8,3991.7,2.50519828]
[1761690344420,0.1258,3991.8,3991.7,2.50519828]
[1761690346931,0.001,3991.8,3991.7,2.50519828]
[1761690347444,0.001,3991.8,3991.7,3.05354921]
[1761690347596,0.001,3991.8,3991.4,0.002]
[1761690347940,0.1005,3991.8,3991.4,0.002]
[1761690348095,2.228,3991.7,3991.4,0.002]
[1761690348411,7.02660048,3991.5,3991.4,0.002]
[1761690348826,7.12610048,3991.5,3991.4,0.002]
[1761690351328,2.60482381,3991.5,3991.4,0.002]
[1761690352622,4.16002381,3991.5,3991.4,0.002]
[1761690352829,9.58724415,3991.5,3991.4,0.002]
[1761690354127,8.03204415,3991.5,3991.4,0.002]
[1761690355334,2.60482381,3991.5,3991.4,0.002]
[1761690357332,2.50532381,3991.5,3991.4,0.002]
[1761690357628,8.03204415,3991.5,3991.4,0.002]
[1761690358823,9.58724415,3991.5,3991.4,0.002]
[1761690359729,11.81524415,3991.5,3991.4,0.002]
[1761690365972,2.5055749,3991.1,3991.0,0.002]
[1761690366158,11.71599524,3991.1,3991.0,0.002]
[1761690366364,11.81549524,3991.1,3991.0,0.002]
[1761690366968,12.22099924,3991.1,3991.0,0.002]
[1761690367275,9.48843477,3990.4,3990.3,0.02174964]
[1761690367490,11.71643477,3990.4,3990.3,0.02174964]
[1761690367643,11.93803477,3990.4,3990.3,0.02174964]
[1761690368542,2.50651694,3989.6,3989.5,0.002]
[1761690368748,4.06196827,3989.2,3989.1,0.002]
[1761690368958,11.71718861,3989.2,3989.1,0.002]
[1761690369168,6.28996827,3989.2,3989.1,0.002]
[1761690369343,6.38896827,3989.2,3989.1,0.002]
[1761690372177,4.73476827,3989.2,3989.1,0.002]
[1761690372883,5.01474259,3989.2,3989.1,0.002]
[1761690373381,5.11374259,3989.2,3989.1,0.002]
[1761690374554,5.01474259,3989.2,3989.1,0.002]
[1761690375096,5.11404259,3989.2,3989.1,0.002]
[1761690375682,2.228,3989.2,3989.1,0.002]
[1761690375868,4.73476827,3989.2,3989.1,0.002]
[1761690376189,2.228,3989.2,3989.1,0.002]
[1761690376691,4.73476827,3989.2,3989.1,0.002]
[1761690376861,2.228,3989.2,3989.1,0.002]
[1761690377225,4.73476827,3989.2,3989.1,0.002]
[1761690378455,2.228,3989.2,3989.1,0.002]
[1761690378660,4.73476827,3989.2,3989.1,0.002]
[1761690378960,2.228,3989.2,3989.1,0.002]
[1761690379660,2.228,3989.2,3989.1,0.445]
[1761690379996,4.73576827,3989.2,3989.1,0.445]
[1761690380693,0.2221,3990.8,3989.1,0.6762]
[1761690380858,0.1248,3989.4,3989.1,3.62802689]
[1761690381061,0.1248,3989.4,3989.3,2.50670543]
[1761690381491,0.1248,3989.4,3989.3,2.94970543]
[1761690381659,0.1248,3989.4,3989.3,3.70245956]
[1761690384311,0.1248,3989.4,3989.3,1.19575413]
[1761690385501,0.1248,3989.4,3989.3,0.75275413]
[1761690386029,2.5066426,3989.4,3989.3,0.75275413]
[1761690386191,2.5066426,3989.4,3989.1,0.002]
[1761690386192,2.50675735,3989.3,3989.1,0.002]
[1761690386511,4.73562852,3989.5,3989.1,0.75482025]
[1761690387089,4.73562852,3989.5,3989.1,1.19782025]
[1761690387299,2.50666245,3989.4,3989.1,0.75482025]
[1761690387880,2.50671239,3989.3,3989.1,0.75482025]
[1761690388581,2.50676827,3989.2,3989.1,0.002]
[1761690391628,2.50673042,3989.3,3989.1,0.002]
[1761690391788,2.50676827,3989.2,3989.1,0.002]
[1761690392306,7.65622034,3989.5,3989.1,0.002]
[1761690392307,2.229,3989.5,3989.1,0.6762]
[1761690392501,5.42722034,3989.9,3989.2,0.443]
[1761690392502,2.50639129,3989.8,3989.2,0.443]
[1761690392718,2.229,3989.7,3989.2,0.443]
[1761690393019,2.50658492,3989.5,3989.2,0.443]
[1761690393717,2.50666097,3989.4,3989.2,0.443]
[1761690393918,2.229,3989.3,3989.1,0.2332]
[1761690394114,2.229,3989.3,3989.1,0.6762]
[1761690395204,2.229,3989.3,3989.1,0.2332]
[1761690395509,2.229,3989.3,3989.2,0.443]
[1761690396319,3.7419,3989.3,3989.1,0.002]
[1761690396492,2.60576827,3989.2,3989.1,0.002]
[1761690397424,8.49647227,3989.2,3989.1,0.002]
[1761690397623,2.50701965,3988.8,3988.7,1e-08]
[1761690397841,11.71943999,3988.8,3988.7,1e-08]
[1761690397987,11.94313999,3988.8,3988.7,1e-08]
[1761690398510,5.5525865,3988.7,3988.4,0.002]
[1761690398715,8.9466815,3988.7,3988.4,0.002]
[1761690399312,23.79333032,3988.7,3988.4,0.002]
[1761690399529,25.21860632,3988.7,3988.4,0.002]
[1761690399909,23.81468732,3988.7,3988.4,0.002]
[1761690400423,20.62293532,3988.7,3988.4,0.002]
[1761690400624,26.98304232,3988.7,3988.4,0.002]
[1761690400825,5.55271222,3988.5,3988.4,1e-08]
[1761690401008,9.33791222,3988.5,3988.4,1e-08]
[1761690401328,9.56161222,3988.5,3988.4,1e-08]
[1761690401927,6.92161222,3988.5,3988.4,1e-08]
[1761690408812,2.50720822,3988.5,3988.4,1e-08]
[1761690409048,6.29140822,3988.5,3988.4,1e-08]
[1761690411218,4.73620822,3988.5,3988.4,0.46740001]
[1761690412346,4.73620822,3988.5,3988.4,1e-08]
[1761690413032,4.73620822,3988.5,3988.4,0.46740001]
[1761690413238,4.73620822,3988.5,3988.4,1e-08]
[1761690413564,4.73620822,3988.5,3988.4,0.46740001]
[1761690414860,4.73620822,3988.5,3988.4,1e-08]
[1761690421543,9.26565314,3988.5,3988.4,1e-08]
[1761690438013,14.35134708,3988.4,3988.3,0.002]
[1761690438214,14.35134708,3988.4,3987.3,0.002]
[1761690438215,2.50752256,3988.0,3987.3,0.002]
[1761690438381,6.29172256,3988.0,3987.3,0.002]
[1761690438581,6.39072256,3988.0,3987.3,0.002]
[1761690439594,4.06291121,3987.7,3987.3,0.002]
[1761690439788,15.75630505,3987.7,3987.3,0.002]
[1761690440115,15.97720505,3987.7,3987.3,0.002]
[1761690440696,27.94651348,3987.7,3987.3,0.002]
[1761690441013,27.21914548,3987.7,3987.3,0.002]
[1761690441594,27.45014548,3987.7,3987.3,0.002]
[1761690442202,27.21914548,3987.7,3987.3,0.002]
[1761690442514,4.06309988,3987.4,3987.3,0.002]
[1761690442715,14.6873468,3987.4,3987.3,0.002]
[1761690442915,14.9082468,3987.4,3987.3,0.002]
[1761690443306,13.8477948,3987.4,3987.3,0.002]
[1761690443505,11.0424448,3987.4,3987.3,0.002]
[1761690448235,14.8223258,3987.4,3987.3,0.002]
[1761690448747,11.0424448,3987.4,3987.3,0.002]
[1761690449448,10.8215448,3987.4,3987.3,0.002]
[1761690450752,14.8515598,3987.4,3987.3,0.002]
[1761690450916,11.2270488,3987.4,3987.3,0.002]
[1761690451337,11.4479488,3987.4,3987.3,0.002]
[1761690452622,10.8215448,3987.4,3987.3,0.4662]
[1761690452936,10.8215448,3987.4,3987.3,0.002]
[1761690469277,10.8215448,3987.4,3987.3,0.4446]
[1761690473385,11.73081699,3987.4,3987.3,0.4446]
[1761690476090,6.29209988,3987.4,3987.3,0.4446]
[1761690476269,11.73081699,3987.4,3987.3,0.4446]
[1761690480921,6.29209988,3987.4,3987.3,0.4446]
[1761690481668,4.73689988,3987.4,3987.3,0.4446]
[1761690484830,2.229,3987.4,3987.3,0.4446]
[1761690485102,2.229,3987.4,3987.3,0.8912]
[1761690485492,2.229,3987.4,3987.3,1.2530147]
[1761690485695,2.229,3987.4,3987.3,0.8912]
[1761690488206,0.1258,3987.5,3987.3,0.8912]
[1761690488410,0.1258,3987.5,3987.4,0.4426]
[1761690488798,2.50789988,3987.4,3987.3,0.4486]
[1761690489103,0.1258,3987.5,3987.3,0.8783]
[1761690489292,2.50789988,3987.4,3987.3,0.4317]
[1761690489497,2.50789988,3987.4,3987.3,0.002]
[1761690490108,2.50789988,3987.4,3987.3,0.441]
[1761690490637,2.50789988,3987.4,3987.3,0.002]
[1761690491612,2.50789988,3987.4,3987.3,0.75525122]
[1761690491820,2.50789988,3987.4,3987.3,1.19425122]
[1761690493138,4.06309988,3987.4,3987.3,0.75525122]
[1761690493436,4.06309988,3987.4,3987.3,0.002]
[1761690495706,0.001,3987.5,3987.3,0.441]
[1761690496036,0.001,3987.7,3987.3,0.441]
[1761690496037,0.1248,3987.6,3987.3,1.19411696]
[1761690496245,0.1248,3987.6,3987.4,0.439]
[1761690496615,0.1248,3987.6,3987.5,2.50783699]
[1761690496940,0.001,3987.7,3987.6,2.50777409]
[1761690497332,0.001,3987.7,3987.6,2.94677409]
[1761690501361,0.001,3987.7,3987.6,3.69984189]
[1761690501652,0.001,3987.7,3987.6,9.544063]
[1761690501956,0.001,3987.9,3987.8,2.50764832]
[1761690502170,0.001,3987.9,3987.8,6.04390892]
[1761690502446,0.001,3987.9,3987.8,6.48290892]
[1761690505020,0.001,3987.9,3987.8,6.88841292]
[1761690506054,0.001,3987.9,3987.8,6.98878215]
[1761690507065,1e-08,3988.3,3988.2,4.69010082]
[1761690507233,1e-08,3988.3,3988.2,17.13607421]
[1761690507425,1e-08,3988.3,3988.2,17.67480025]
[1761690508438,1e-08,3988.3,3988.2,17.77514908]
[1761690508833,0.001,3988.6,3988.4,2.91277508]
[1761690509147,0.001,3988.6,3988.4,9.4415371]
[1761690510460,0.001,3988.6,3988.4,13.27753708]
[1761690511558,0.001,3988.6,3988.4,11.05153708]
[1761690511728,0.001,3988.6,3988.4,13.27753708]
[1761690511934,0.001,3988.6,3988.4,13.37788642]
[1761690515075,0.001,3988.6,3988.4,11.15188642]
[1761690515266,0.001,3988.6,3988.4,13.37788642]
[1761690524778,1e-08,3988.9,3988.8,2.50701965]
[1761690524979,1e-08,3988.9,3988.8,16.55651941]
[1761690525187,1e-08,3988.9,3988.8,17.14511941]
[1761690525585,1e-08,3988.9,3988.8,17.24547076]
[1761690525897,1e-08,3988.9,3988.8,17.65097476]
[1761690526053,0.1248,3990.9,3989.4,8.35086371]
[1761690526250,0.1248,3990.9,3989.4,13.36445193]
[1761690526450,0.1248,3990.9,3989.4,13.82825193]
[1761690526987,0.099,3990.8,3989.4,13.92858465]
[1761690530990,0.099,3990.6,3989.4,17.76458463]
[1761690533087,0.1248,3990.9,3989.4,17.76458463]
[1761690533286,0.099,3990.5,3989.4,9.63706752]
[1761690533470,0.2229,3990.2,3989.4,11.86206752]
[1761690533669,0.2229,3990.2,3989.4,12.32586752]
[1761690534469,0.3477,3990.5,3989.4,12.32586752]
[1761690535389,0.2229,3990.7,3989.4,16.72390054]
[1761690535596,0.2229,3990.7,3989.4,16.84870054]
[1761690535795,0.2229,3990.5,3989.4,16.84870054]
[1761690536183,2.63051258,3990.9,3989.4,16.84770054]
[1761690536489,0.2239,3990.3,3989.4,16.84770054]
[1761690537092,0.2239,3990.3,3989.4,9.63706752]
[1761690537396,0.2229,3990.2,3989.4,11.86106752]
[1761690537694,0.2229,3990.2,3989.4,12.32486752]
[1761690538593,0.001,3990.3,3989.4,12.32486752]
[1761690540984,0.001,3990.3,3989.4,12.32686752]
[1761690541185,0.001,3990.3,3989.4,12.20206752]
[1761690541496,0.001,3990.3,3989.4,16.84970054]
[1761690541696,0.001,3990.3,3989.4,14.62570054]
[1761690542066,0.001,3990.3,3989.4,16.84970054]
[1761690542267,0.001,3990.3,3989.8,2.91189529]
[1761690542468,0.001,3990.3,3990.2,4.46684404]
[1761690542688,2.50983035,3993.9,3990.8,0.405504]
[1761690542689,4.52283302,3993.5,3990.8,0.405504]
[1761690542995,0.3468,3992.7,3991.7,1.960704]
[1761690543208,2.50413449,3993.4,3991.7,4.52283302]
[1761690543209,0.3468,3993.0,3991.7,4.52283302]
[1761690543517,0.2968,3993.0,3992.0,2.50501002]
[1761690543720,0.2968,3993.0,3992.6,2.50457904]
[1761690543918,0.2968,3993.0,3992.5,2.224]
[1761690544095,0.2968,3993.0,3992.5,4.72865037]
[1761690544434,0.003,3993.7,3992.6,2.91009211]
[1761690544635,0.003,3993.7,3993.4,2.50407624]
[1761690544782,0.003,3993.7,3993.5,2.224]
[1761690545416,0.003,3993.7,3993.6,0.1003]
[1761690546199,2.60594371,3993.7,3993.6,0.1003]
[1761690546814,0.102,3993.7,3993.6,0.1003]
[1761690548905,0.003,3993.7,3993.6,0.1003]
[1761690549292,0.102,3993.7,3993.6,0.1003]
[1761690551159,2.60594371,3993.7,3993.6,0.1003]
[1761690551312,2.60594371,3993.7,3993.2,2.223]
[1761690551509,0.099,3993.6,3993.2,2.223]
[1761690552259,0.003,3993.7,3993.2,2.223]
[1761690552260,0.1278,3993.7,3993.2,2.223]
[1761690552560,0.1278,3993.7,3993.3,2.50413515]
[1761690552854,0.1278,3993.7,3993.4,2.50412869]
[1761690553227,0.1278,3993.7,3993.2,4.72721034]
[1761690553625,0.1278,3993.7,3993.3,2.50418263]
[1761690554053,0.1278,3993.7,3992.7,0.75200314]
[1761690554054,2.50425723,3993.2,3992.7,0.75200314]
[1761690554365,9.14466604,3993.6,3990.5,0.4726]
[1761690554366,9.17056604,3992.8,3990.5,0.4726]
[1761690554662,9.17056604,3992.8,3990.9,1.5552]
[1761690554663,4.52283302,3992.5,3990.9,1.5552]
[1761690554810,2.5236,3992.7,3991.6,2.5052504]
[1761690555012,4.52283302,3992.5,3991.1,2.5055749]
[1761690555337,4.52283302,3992.5,3990.7,4.06098705]
[1761690555338,2.50512353,3991.9,3990.6,1.22483507]
[1761690555517,2.50518717,3991.8,3990.9,2.5056393]
[1761690555917,2.80278717,3991.8,3990.9,2.5056393]
[1761690556239,2.80278717,3991.8,3990.7,0.405504]
[1761690556439,2.80278717,3991.8,3991.1,2.50553137]
[1761690556754,2.5046963,3992.5,3991.1,0.405504]
[1761690556755,0.099,3992.5,3991.1,0.405504]
[1761690556963,2.5047641,3992.4,3991.6,2.50526066]
[1761690557254,2.6037082,3992.5,3991.7,2.50519234]
[1761690557771,0.1,3992.4,3991.7,2.50519234]
[1761690558152,0.1,3992.4,3991.8,2.50513458]
[1761690558741,0.1249,3992.8,3992.6,0.002]
[1761690558972,0.1,3992.7,3992.6,0.002]
[1761690559271,0.2249,3992.8,3992.6,0.002]
[1761690559452,2.60457084,3992.7,3992.6,0.002]
[1761690559657,0.1,3992.7,3992.6,0.002]
[1761690560245,1.6801,3992.8,3992.6,0.002]
[1761690560646,2.72941374,3992.8,3992.6,0.002]
[1761690560958,0.1,3992.7,3992.6,0.002]
[1761690561160,0.1249,3992.8,3992.6,0.002]
[1761690561373,2.227,3993.2,3992.7,0.4726]
[1761690561678,2.227,3993.2,3992.6,0.002]
[1761690561679,2.227,3993.2,3992.9,2.50444176]
[1761690561857,2.6069622,3993.7,3992.9,2.50444176]
[1761690562053,2.5079622,3993.7,3992.9,2.50444176]
[1761690562255,0.099,3993.6,3992.7,2.50454223]
[1761690562445,0.004,3993.7,3992.9,2.50441066]
[1761690562646,0.004,3993.7,3992.9,0.77105821]
[1761690562876,0.004,3993.7,3992.8,2.6996]
[1761690563044,0.004,3993.7,3992.8,4.73150062]
[1761690563247,0.004,3993.7,3992.6,0.002]
[1761690563248,0.1256,3992.9,3992.6,0.002]
[1761690563449,4.05977084,3992.7,3992.6,0.002]
[1761690563780,2.231,3992.8,3992.6,0.002]
[1761690563781,2.3303,3992.8,3992.6,0.002]
[1761690563950,0.1256,3992.9,3992.6,0.002]
[1761690564151,0.1248,3992.8,3992.6,0.002]
[1761690565490,2.235,3993.1,3992.6,2.50659097]
[1761690565692,2.3598,3993.1,3992.6,2.50659097]
[1761690566190,0.1248,3993.1,3992.6,0.002]
[1761690566385,2.62916461,3993.1,3992.6,0.002]
[1761690566693,0.1248,3993.1,3992.6,0.002]
[1761690566994,0.2243,3993.1,3992.6,0.002]
[1761690567356,0.1248,3993.1,3992.6,0.002]
[1761690567591,0.004,3993.7,3992.7,3.38267309]
[1761690567791,2.50405463,3993.6,3992.8,2.50449728]
[1761690568159,0.004,3993.7,3993.5,0.2209]
[1761690568359,0.004,3993.7,3993.6,0.405504]
[1761690568590,0.004,3993.7,3993.6,4.93731041]
[1761690568788,0.004,3993.7,3993.6,6.02726923]
[1761690569197,0.006,3993.9,3993.8,4.05908101]
[1761690569381,0.006,3993.9,3993.8,4.46458501]
[1761690569580,0.006,3993.9,3993.8,4.93718501]
[1761690570290,0.006,3993.9,3993.8,7.17518501]
[1761690570482,0.006,3993.9,3993.8,8.40419003]
[1761690571895,0.006,3993.9,3993.8,6.16619003]
[1761690572393,0.006,3993.9,3993.8,8.40319003]
[1761690573101,0.006,3993.9,3993.8,6.16619003]
[1761690573298,0.006,3993.9,3993.8,8.40319003]
[1761690573493,0.006,3993.9,3993.8,6.84799003]
[1761690574906,0.006,3993.9,3993.8,0.10022638]
[1761690575086,0.006,3993.9,3993.7,2.237]
[1761690575287,0.006,3993.9,3993.7,4.74094088]
[1761690575883,0.006,3993.9,3993.7,2.237]
[1761690576088,0.006,3993.9,3993.7,4.74093354]
[1761690576419,0.006,3993.9,3993.6,0.10024195]
[1761690576609,0.2003,3993.8,3992.8,0.2209]
[1761690576907,0.2003,3993.8,3993.1,0.10025502]
[1761690577106,0.007,3993.9,3993.2,2.7096]
[1761690577293,0.007,3993.9,3993.6,2.50400277]
[1761690577497,0.007,3993.9,3993.7,0.1248]
[1761690577903,0.1083,3993.9,3993.7,0.1248]
[1761690578284,0.1083,3993.9,3993.1,3.01001661]
[1761690578608,0.007,3993.9,3993.5,0.405504]
[1761690578785,0.007,3993.9,3993.2,2.237]
[1761690578786,0.007,3993.9,3993.8,2.62868101]
[1761690578990,0.007,3993.9,3993.8,0.1248]
[1761690579210,0.007,3993.9,3993.8,2.62868101]
[1761690579706,0.007,3993.9,3993.8,0.1248]
[1761690579911,0.007,3993.9,3993.8,2.62868101]
[1761690581224,0.007,3993.9,3993.8,0.1248]
[1761690581424,0.007,3993.9,3993.6,2.237]
[1761690581425,0.2063,3993.9,3993.6,2.237]
[1761690581928,0.007,3993.9,3993.6,2.50400405]
[1761690582129,0.007,3993.9,3993.8,2.62868101]
[1761690583229,0.007,3993.9,3993.8,3.06378101]
[1761690583527,0.007,3993.9,3993.8,5.30078101]
[1761690584923,0.007,3993.9,3993.8,5.70628501]
[1761690585118,0.007,3993.9,3993.8,7.26148501]
[1761690585299,0.007,3993.9,3993.8,8.38690884]
[1761690589521,0.007,3994.1,3994.0,4.46445963]
[1761690589817,0.007,3994.1,3994.0,4.89955963]
[1761690590017,0.007,3994.1,3994.0,8.86035961]
[1761690591127,0.001,3994.3,3994.2,2.90913426]
[1761690591319,0.001,3994.3,3994.2,8.21105325]
[1761690591519,0.001,3994.3,3994.2,8.77095325]
[1761690591920,0.001,3994.3,3994.2,8.87195325]
[1761690592328,0.001,3994.3,3994.2,8.77095325]
[1761690597337,0.001,3994.3,3994.2,6.53595325]
[1761690597552,0.001,3994.3,3994.2,8.76895325]
[1761690600326,0.001,3994.3,3994.2,8.33285325]
[1761690600660,0.001,3994.3,3994.2,8.76795325]
[1761690600958,0.001,3994.3,3994.2,8.64315325]
[1761690601156,0.001,3994.3,3994.2,8.76795325]
[1761690601367,0.001,3994.3,3994.2,6.53595325]
[1761690601553,0.001,3994.3,3994.2,6.10085325]
[1761690601740,0.001,3994.3,3994.2,5.88105325]
[1761690601935,0.001,3994.3,3994.2,8.11605325]
[1761690602139,0.001,3994.3,3994.2,8.55115325]
[1761690602446,0.001,3994.3,3994.2,12.38715323]
[1761690603245,0.001,3994.3,3994.2,11.95205323]
[1761690603646,0.001,3994.3,3994.2,12.38715323]
[1761690603840,0.054,3995.5,3995.4,2.50287831]
[1761690604034,2.50260546,3995.9,3995.0,2.239]
[1761690604241,2.50260546,3995.9,3995.1,2.5030612]
[1761690604565,2.50264628,3995.8,3995.1,2.5030612]
[1761690605135,2.50264628,3995.8,3995.0,2.239]
[1761690605136,0.1254,3996.0,3994.2,1.29191899]
[1761690605333,0.1254,3996.0,3994.1,2.50566298]
[1761690605334,1.5552,3995.8,3994.6,2.50334815]
[1761690605651,0.158,3994.2,3994.1,0.002]
[1761690605848,0.158,3994.2,3994.1,4.74469294]
[1761690606153,0.257,3994.2,3994.1,4.74469294]
[1761690606553,0.099,3994.5,3994.4,2.5035049]
[1761690606953,0.1575,3994.5,3994.4,2.5035049]
[1761690607965,0.2571,3994.5,3994.1,0.002]
[1761690608170,0.0996,3994.4,3994.2,2.50363026]
[1761690608343,0.0996,3994.4,3994.3,2.50356758]
[1761690608867,0.0996,3994.4,3994.1,0.002]
[1761690611288,2.6031374,3994.4,3994.1,0.002]
[1761690611758,2.50363026,3994.2,3994.1,0.002]
[1761690612158,2.60323026,3994.2,3994.1,0.002]
[1761690612371,0.0996,3994.2,3994.1,0.002]
[1761690612675,2.60323026,3994.2,3994.1,0.002]
[1761690612880,0.0996,3994.2,3994.1,0.002]
[1761690613044,2.60323026,3994.2,3994.1,0.002]
[1761690615956,0.0996,3994.2,3994.1,0.002]
[1761690616354,2.238,3994.4,3994.1,0.002]
[1761690616555,0.1575,3994.5,3994.1,0.002]
[1761690616761,0.2571,3994.5,3994.1,2.50568862]
[1761690617055,0.0996,3994.4,3994.1,0.002]
[1761690619965,0.0996,3994.4,3994.1,2.50569216]
[1761690620457,5.57639316,3994.5,3994.1,2.50569216]
[1761690620886,5.67599316,3994.5,3994.1,2.50569216]
[1761690621294,0.1575,3994.5,3994.1,0.002]
[1761690621494,0.1569,3994.8,3994.2,2.50363026]
[1761690621653,0.1569,3994.8,3994.6,2.50332341]
[1761690621987,0.1569,3994.8,3994.7,2.50331689]
[1761690622566,0.1563,3995.1,3994.7,2.50331689]
[1761690623367,0.1007,3995.0,3994.1,0.2261]
[1761690623569,0.1007,3995.0,3994.1,0.002]
[1761690623880,2.60383709,3995.0,3994.2,2.50362857]
[1761690624187,2.50329826,3994.8,3994.1,0.002]
[1761690624497,2.60389504,3994.9,3994.2,2.50357761]
[1761690624872,0.27601371,3995.0,3994.1,2.50567873]
[1761690624873,2.60396427,3994.8,3994.1,2.50567873]
[1761690625188,2.60396427,3994.8,3994.2,2.50362698]
[1761690625363,0.1007,3994.7,3994.2,2.50362698]
[1761690625767,0.1007,3994.7,3994.3,2.50356515]
[1761690626091,0.1248,3994.6,3994.1,2.5056339]
[1761690626298,0.1248,3994.6,3994.1,0.002]
[1761690626498,0.1007,3994.5,3994.1,0.002]
[1761690627097,0.1007,3994.5,3994.1,2.50564696]
[1761690627296,0.1007,3994.5,3994.2,2.50362884]
[1761690627465,0.1248,3994.6,3994.2,2.50362884]
[1761690628195,0.1248,3994.6,3994.3,2.50352823]
[1761690628513,0.1248,3994.6,3994.4,2.50349965]
[1761690628722,0.1248,3994.6,3994.3,2.50354615]
[1761690628882,0.1248,3994.6,3994.2,2.50362397]